fUST/lending_fUST_20240826
["ID","MTS","AMOUNT","RATE_DAILY","PERIOD"]
[336062129,1724685050464,-506.34,0.00012058,2]
[336062130,1724685050474,-500.0,0.00012058,2]
[336062131,1724685050483,-500.0,0.00012058,2]
[336062132,1724685050493,-500.0,0.00012058,2]
[336062133,1724685050503,-504.34,0.00012058,2]
[336062134,1724685050512,-335.49880222,0.00012058,2]
[336062135,1724685050521,-500.0,0.00012058,2]
[336062136,1724685050535,-507.0,0.00012058,2]
[336062137,1724685050544,-500.0,0.00012058,2]
[336062138,1724685050554,-500.0,0.00012058,2]
[336062139,1724685050563,-500.0,0.00012058,2]
[336062140,1724685050575,-500.0,0.00012058,2]
[336062141,1724685050586,-500.0,0.00012058,2]
[336062142,1724685050596,-500.0,0.00012058,2]
[336062143,1724685050605,-751.37,0.00012058,2]
[336062144,1724685050617,-515.17,0.00012058,2]
[336062145,1724685050627,-500.0,0.00012058,2]
[336062146,1724685050637,-333.61633717,0.00012058,2]
[336062147,1724685050646,-500.0,0.00012058,2]
[336062148,1724685050655,-500.0,0.00012058,2]
[336062149,1724685050666,-550.11,0.00012058,2]
[336062150,1724685050675,-500.0,0.00012058,2]
[336062151,1724685050684,-500.0,0.00012058,2]
[336062152,1724685050694,-500.0,0.00012058,2]
[336062153,1724685050705,-500.0,0.00012058,2]
[336062154,1724685050715,-745.64,0.00012058,2]
[336062155,1724685050724,-500.0,0.00012058,2]
[336062156,1724685050734,-500.0,0.00012058,2]
[336062157,1724685050744,-500.0,0.00012058,2]
[336062158,1724685050753,-500.0,0.00012058,2]
[336062159,1724685050763,-1263.82,0.00012058,2]
[336062160,1724685050773,-500.0,0.00012058,2]
[336062161,1724685050782,-500.0,0.00012058,2]
[336062162,1724685050792,-500.0,0.00012058,2]
[336062163,1724685050802,-942.87,0.00012058,2]
[336062164,1724685050812,-445.12765527,0.00012058,2]
[336062165,1724685050823,-500.0,0.00012058,2]
[336062166,1724685050833,-528.99691238,0.00012058,2]
[336062167,1724685050843,-500.0,0.00012058,2]
[336062168,1724685050852,-500.0,0.00012058,2]
[336062169,1724685050862,-726.35,0.00012058,2]
[336062170,1724685050871,-500.0,0.00012058,2]
[336062171,1724685050881,-762.09,0.00012058,2]
[336062172,1724685050892,-869.31,0.00012058,2]
[336062173,1724685050902,-500.0,0.00012058,2]
[336062174,1724685050912,-958.41,0.00012058,2]
[336062175,1724685050923,-523.27,0.00012058,2]
[336062176,1724685050932,-500.0,0.00012058,2]
[336062177,1724685050943,-500.0,0.00012058,2]
[336062178,1724685050953,-500.0,0.00012058,2]
[336062179,1724685050963,-500.0,0.00012058,2]
[336062180,1724685050973,-500.0,0.00012058,2]
[336062181,1724685050983,-297.76240184,0.00012058,2]
[336062182,1724685050992,-602.69,0.00012058,2]
[336062183,1724685051002,-908.5,0.00012058,2]
[336062184,1724685051013,-946.35,0.00012058,2]
[336062185,1724685051022,-649.57,0.00012058,2]
[336062186,1724685051032,-596.68,0.00012058,2]
[336062187,1724685051041,-621.42,0.00012058,2]
[336062188,1724685051050,-500.0,0.00012058,2]
[336062189,1724685051061,-500.0,0.00012058,2]
[336062190,1724685051071,-1774.42,0.00012058,2]
[336062191,1724685051081,-694.43,0.00012058,2]
[336062192,1724685051090,-500.0,0.00012058,2]
[336062193,1724685051099,-18410.3,0.00012058,2]
[336062194,1724685051110,-500.0,0.00012058,2]
[336062195,1724685051120,-500.0,0.00012058,2]
[336062196,1724685051130,-863.58,0.00012058,2]
[336062197,1724685051141,-801.96,0.00012058,2]
[336062198,1724685051151,-500.0,0.00012058,2]
[336062199,1724685051160,-888.01,0.00012058,2]
[336062200,1724685051169,-500.0,0.00012058,2]
[336062201,1724685051178,-1012.69,0.00012058,2]
[336062202,1724685051187,-500.0,0.00012058,2]
[336062203,1724685051197,-590.21,0.00012058,2]
[336062204,1724685051208,-500.0,0.00012058,2]
[336062205,1724685051217,-500.06,0.00012058,2]
[336062206,1724685051227,-566.56,0.00012058,2]
[336062207,1724685051236,-538.63,0.00012058,2]
[336062208,1724685051246,-500.0,0.00012058,2]
[336062209,1724685051260,-790.28,0.00012058,2]
[336062210,1724685051270,-500.0,0.00012058,2]
[336062211,1724685051280,-864.67,0.00012058,2]
[336062212,1724685051291,-500.0,0.00012058,2]
[336062213,1724685051301,-500.0,0.00012058,2]
[336062214,1724685051312,-545.54,0.00012058,2]
[336062215,1724685051324,-500.0,0.00012058,2]
[336062216,1724685051335,-500.0,0.00012058,2]
[336062217,1724685051345,-500.0,0.00012058,2]
[336062218,1724685051355,-914.84,0.00012058,2]
[336062219,1724685051365,-500.0,0.00012058,2]
[336062220,1724685051375,-500.0,0.00012058,2]
[336062221,1724685051385,-1128.96,0.00012058,2]
[336062222,1724685051394,-500.0,0.00012058,2]
[336062223,1724685051404,-557.82,0.00012058,2]
[336062224,1724685051413,-534.61,0.00012058,2]
[336062225,1724685051422,-1112.32,0.00012058,2]
[336062226,1724685051432,-500.0,0.00012058,2]
[336062227,1724685051442,-500.0,0.00012058,2]
[336062228,1724685051453,-505.49,0.00012058,2]
[336062229,1724685051463,-500.0,0.00012058,2]
[336062230,1724685051473,-500.0,0.00012058,2]
[336062231,1724685051483,-500.0,0.00012058,2]
[336062232,1724685051492,-500.0,0.00012058,2]
[336062233,1724685051503,-500.0,0.00012058,2]
[336062234,1724685051513,-1017.06,0.00012058,2]
[336062235,1724685051526,-500.0,0.00012058,2]
[336062236,1724685051536,-500.45,0.00012058,2]
[336062237,1724685051546,-500.0,0.00012058,2]
[336062238,1724685051556,-500.0,0.00012058,2]
[336062239,1724685051567,-747.49,0.00012058,2]
[336062240,1724685051579,-929.71,0.00012058,2]
[336062241,1724685051588,-500.0,0.00012058,2]
[336062242,1724685051597,-500.0,0.00012058,2]
[336062243,1724685051608,-500.0,0.00012058,2]
[336062244,1724685051617,-500.0,0.00012058,2]
[336062245,1724685051627,-636.44,0.00012058,2]
[336062246,1724685051638,-500.0,0.00012058,2]
[336062247,1724685051648,-2798.37,0.00012058,2]
[336062248,1724685051658,-849.48,0.00012059,2]
[336062249,1724685051667,-577.09,0.00012059,2]
[336062250,1724685051677,-528.5,0.00012059,2]
[336062251,1724685051687,-642.3192884,0.00012059,2]
[336062252,1724685051697,-586.7,0.00012059,2]
[336062253,1724685051708,-500.0,0.0001206,2]
[336062254,1724685051718,-500.0,0.0001206,2]
[336062255,1724685051728,-544.28,0.0001206,2]
[336062256,1724685051738,-500.07,0.0001206,2]
[336062257,1724685051747,-500.0,0.0001206,2]
[336062258,1724685051758,-579.85,0.0001206,2]
[336062259,1724685051768,-556.56,0.0001206,2]
[336062260,1724685051779,-500.0,0.0001206,2]
[336062261,1724685051789,-500.0,0.0001206,2]
[336062262,1724685051799,-500.0,0.0001206,2]
[336062263,1724685051809,-500.0,0.0001206,2]
[336062264,1724685051819,-500.0,0.0001206,2]
[336062265,1724685051830,-509.98,0.0001206,2]
[336062266,1724685051840,-500.0,0.0001206,2]
[336062267,1724685051850,-702.72,0.0001206,2]
[336062268,1724685051860,-500.0,0.0001206,2]
[336062269,1724685051870,-500.0,0.0001206,2]
[336062270,1724685051880,-500.0,0.0001206,2]
[336062271,1724685051890,-500.0,0.0001206,2]
[336062272,1724685051899,-500.0,0.0001206,2]
[336062273,1724685051909,-500.0,0.0001206,2]
[336062274,1724685051919,-500.0,0.0001206,2]
[336062275,1724685051929,-500.0,0.0001206,2]
[336062276,1724685051939,-614.05,0.0001206,2]
[336062277,1724685051949,-500.0,0.0001206,2]
[336062278,1724685051959,-500.0,0.0001206,2]
[336062279,1724685051969,-362.74672146,0.0001206,2]
[336062280,1724685051979,-500.0,0.0001206,2]
[336062281,1724685051989,-639.8,0.0001206,2]
[336062282,1724685051998,-500.0,0.0001206,2]
[336062283,1724685052008,-500.0,0.0001206,2]
[336062284,1724685052019,-500.0,0.0001206,2]
[336062285,1724685052029,-508.34,0.0001206,2]
[336062286,1724685052038,-500.0,0.0001206,2]
[336062287,1724685052047,-500.0,0.0001206,2]
[336062288,1724685052057,-500.0,0.0001206,2]
[336062289,1724685052067,-750.87,0.0001206,2]
[336062290,1724685052078,-500.0,0.0001206,2]
[336062291,1724685052087,-500.0,0.0001206,2]
[336062292,1724685052097,-756.42,0.0001206,2]
[336062293,1724685052107,-500.0,0.0001206,2]
[336062294,1724685052116,-501.24786897,0.0001206,2]
[336062295,1724685052126,-500.0,0.0001206,2]
[336062296,1724685052135,-500.0,0.0001206,2]
[336062297,1724685052157,-500.0,0.0001206,2]
[336062298,1724685052168,-540.49,0.0001206,2]
[336062299,1724685052178,-500.0,0.0001206,2]
[336062300,1724685052188,-675.49,0.0001206,2]
[336062301,1724685052199,-500.0,0.0001206,2]
[336062302,1724685052210,-429.47140615,0.0001206,2]
[336062303,1724685052220,-500.0,0.0001206,2]
[336062304,1724685052230,-500.0,0.0001206,2]
[336062305,1724685052241,-500.0,0.0001206,2]
[336062306,1724685052250,-500.0,0.0001206,2]
[336062307,1724685052260,-500.0,0.0001206,2]
[336062308,1724685052271,-500.0,0.0001206,2]
[336062309,1724685052281,-644.38,0.0001206,2]
[336062310,1724685052291,-534.89,0.0001206,2]
[336062311,1724685052301,-500.0,0.0001206,2]
[336062312,1724685052312,-500.0,0.0001206,2]
[336062313,1724685052323,-646.22,0.0001206,2]
[336062314,1724685052333,-529.15,0.0001206,2]
[336062315,1724685052343,-500.0,0.0001206,2]
[336062316,1724685052353,-500.0,0.0001206,2]
[336062317,1724685052363,-500.0,0.0001206,2]
[336062318,1724685052373,-156.9015561,0.0001206,2]
[336062319,1724685052383,-500.0,0.0001206,2]
[336062320,1724685052392,-503.31,0.0001206,2]
[336062321,1724685052403,-500.0,0.0001206,2]
[336062322,1724685052413,-500.0,0.0001206,2]
[336062323,1724685052423,-699.14,0.0001206,2]
[336062324,1724685052433,-736.6,0.0001206,2]
[336062325,1724685052442,-717.04,0.0001206,2]
[336062326,1724685052453,-500.0,0.0001206,2]
[336062327,1724685052463,-571.68,0.0001206,2]
[336062328,1724685052473,-500.0,0.0001206,2]
[336062329,1724685052482,-500.0,0.0001206,2]
[336062330,1724685052492,-805.73,0.0001206,2]
[336062331,1724685052502,-607.12,0.0001206,2]
[336062332,1724685052511,-500.0,0.0001206,2]
[336062333,1724685052522,-514.67,0.0001206,2]
[336062334,1724685052535,-706.12,0.0001206,2]
[336062335,1724685052544,-500.0,0.0001206,2]
[336062336,1724685052555,-584.88,0.0001206,2]
[336062337,1724685052564,-500.0,0.0001206,2]
[336062338,1724685052576,-500.0,0.0001206,2]
[336062339,1724685052586,-1145.89,0.0001206,2]
[336062340,1724685052596,-500.0,0.0001206,2]
[336062341,1724685052608,-500.0,0.0001206,2]
[336062342,1724685052618,-580.56,0.0001206,2]
[336062343,1724685052628,-500.0,0.0001206,2]
[336062344,1724685052638,-811.56457104,0.0001206,2]
[336062345,1724685052934,-166.59542896,0.0001206,2]
[336062346,1724685052944,-24.20797598,0.0001206,2]
[336062347,1724685052957,-475.79202402,0.0001206,2]
[336062348,1724685052967,-656.71,0.0001206,2]
[336062349,1724685052977,-500.0,0.0001206,2]
[336062350,1724685052987,-500.0,0.0001206,2]
[336062351,1724685052996,-500.0,0.0001206,2]
[336062352,1724685053007,-500.0,0.0001206,2]
[336062353,1724685053016,-500.0,0.0001206,2]
[336062354,1724685053026,-510.34,0.0001206,2]
[336062355,1724685053036,-500.0,0.0001206,2]
[336062356,1724685053045,-813.01,0.0001206,2]
[336062357,1724685053057,-795.75,0.0001206,2]
[336062358,1724685053067,-500.0,0.0001206,2]
[336062359,1724685053079,-194.1451471,0.0001206,2]
[336062360,1724685053120,-518.7248529,0.0001206,2]
[336062361,1724685053129,-500.0,0.0001206,2]
[336062362,1724685053139,-500.0,0.0001206,2]
[336062363,1724685053149,-500.0,0.0001206,2]
[336062364,1724685053158,-721.64111306,0.0001206,2]
[336062365,1724685053772,-1343.42,0.00011509,2]
[336062366,1724685053782,-1343.42,0.00011509,2]
[336062367,1724685053791,-1343.42,0.00011509,2]
[336062368,1724685053801,-500.0,0.0001151,2]
[336062369,1724685053810,-500.0,0.0001151,2]
[336062370,1724685053819,-519.95,0.0001151,2]
[336062371,1724685053832,-401.68,0.00011784,2]
[336062372,1724685053845,-500.0,0.00011784,2]
[336062373,1724685053854,-189.82888694,0.0001206,2]
[336062374,1724685053863,-500.0,0.0001206,2]
[336062375,1724685053873,-708.5,0.0001206,2]
[336062376,1724685053883,-690.26,0.0001206,2]
[336062377,1724685053893,-529.51,0.0001206,2]
[336062378,1724685053903,-821.29,0.0001206,2]
[336062379,1724685053912,-500.0,0.0001206,2]
[336062380,1724685053922,-588.16,0.0001206,2]
[336062381,1724685053931,-500.0,0.0001206,2]
[336062382,1724685053941,-732.16,0.0001206,2]
[336062383,1724685053950,-847.62,0.0001206,2]
[336062384,1724685053959,-500.0,0.0001206,2]
[336062385,1724685053968,-500.0,0.0001206,2]
[336062386,1724685053978,-500.0,0.0001206,2]
[336062387,1724685053987,-500.0,0.0001206,2]
[336062388,1724685053996,-500.0,0.0001206,2]
[336062389,1724685054006,-500.0,0.0001206,2]
[336062390,1724685054015,-500.0,0.0001206,2]
[336062391,1724685054024,-500.0,0.0001206,2]
[336062392,1724685054034,-717.29,0.0001206,2]
[336062393,1724685054043,-500.0,0.0001206,2]
[336062394,1724685054052,-500.0,0.0001206,2]
[336062395,1724685054061,-151.0,0.0001206,2]
[336062396,1724685054071,-500.0,0.0001206,2]
[336062397,1724685054094,-500.0,0.0001206,2]
[336062398,1724685054103,-500.0,0.0001206,2]
[336062399,1724685054113,-151.0,0.0001206,2]
[336062400,1724685054123,-500.0,0.0001206,2]
[336062401,1724685054131,-500.0,0.0001206,2]
[336062402,1724685054140,-500.0,0.0001206,2]
[336062403,1724685054150,-1618.239932,0.0001206,2]
[336062404,1724685054159,-688.03,0.0001206,2]
[336062405,1724685054169,-500.0,0.0001206,2]
[336062406,1724685054179,-1618.239932,0.0001206,2]
[336062407,1724685054188,-316.07775,0.0001206,2]
[336062408,1724685054198,-500.0,0.0001206,2]
[336062409,1724685054207,-316.07775,0.0001206,2]
[336062410,1724685054216,-500.0,0.0001206,2]
[336062411,1724685054226,-500.0,0.0001206,2]
[336062412,1724685054235,-500.0,0.0001206,2]
[336062413,1724685054245,-502.67179824,0.0001206,2]
[336062414,1724685054254,-678.78684296,0.0001206,2]
[336062415,1724685054266,-752.19768104,0.0001206,2]
[336062416,1724685054275,-1430.984524,0.0001206,2]
[336062417,1724685054285,-151.0,0.0001206,2]
[336062418,1724685054294,-1586.5321,0.0001206,2]
[336062419,1724685054303,-500.0,0.0001206,2]
[336062420,1724685054313,-1586.5321,0.0001206,2]
[336062421,1724685054322,-500.0,0.0001206,2]
[336062422,1724685054333,-500.0,0.0001206,2]
[336062423,1724685054342,-151.0,0.0001206,2]
[336062424,1724685054351,-151.0,0.0001206,2]
[336062425,1724685054361,-1556.434463,0.0001206,2]
[336062426,1724685054370,-595.11,0.0001206,2]
[336062427,1724685054380,-151.0,0.0001206,2]
[336062428,1724685054389,-1556.434463,0.0001206,2]
[336062429,1724685054399,-500.0,0.0001206,2]
[336062430,1724685054408,-731.94,0.0001206,2]
[336062431,1724685054417,-500.0,0.0001206,2]
[336062432,1724685054426,-589.69,0.0001206,2]
[336062433,1724685054436,-151.0,0.0001206,2]
[336062434,1724685054444,-841.136286,0.0001206,2]
[336062435,1724685054454,-151.0,0.0001206,2]
[336062436,1724685054463,-410.509777,0.0001206,2]
[336062437,1724685054473,-841.136286,0.0001206,2]
[336062438,1724685054482,-731.747328,0.0001206,2]
[336062439,1724685054491,-410.509777,0.0001206,2]
[336062440,1724685054500,-731.747328,0.0001206,2]
[336062441,1724685054509,-151.0,0.0001206,2]
[336062442,1724685054519,-899.37,0.0001206,2]
[336062443,1724685054533,-151.0,0.0001206,2]
[336062444,1724685054542,-501.1805588,0.00012061,2]
[336062445,1724685054551,-500.68298531,0.00012061,2]
[336062446,1724685054561,-500.0,0.00012061,2]
[336062447,1724685054571,-500.0,0.00012061,2]
[336062448,1724685054584,-500.0,0.00012061,2]
[336062449,1724685054593,-500.0,0.00012061,2]
[336062450,1724685054603,-500.0,0.00012061,2]
[336062451,1724685054612,-500.0,0.00012061,2]
[336062452,1724685054622,-809.22,0.00012061,2]
[336062453,1724685054631,-540.21,0.00012061,2]
[336062454,1724685054640,-805.39,0.00012061,2]
[336062455,1724685054649,-500.0,0.00012061,2]
[336062456,1724685054660,-500.0,0.00012061,2]
[336062457,1724685054669,-553.64,0.00012061,2]
[336062458,1724685054678,-500.0,0.00012061,2]
[336062459,1724685054690,-500.0,0.00012061,2]
[336062460,1724685054699,-542.27,0.00012061,2]
[336062461,1724685054709,-500.0,0.00012061,2]
[336062462,1724685054719,-500.0,0.00012061,2]
[336062463,1724685054729,-527.46,0.00012061,2]
[336062464,1724685054739,-500.0,0.00012061,2]
[336062465,1724685054750,-500.0,0.00012061,2]
[336062466,1724685054759,-151.0,0.00012061,2]
[336062467,1724685054769,-817.78,0.00012061,2]
[336062468,1724685054779,-506.44,0.00012061,2]
[336062469,1724685054788,-531.16,0.00012061,2]
[336062470,1724685054797,-500.0,0.00012061,2]
[336062471,1724685054807,-367.758886,0.00012061,2]
[336062472,1724685054816,-367.758886,0.00012061,2]
[336062473,1724685054826,-151.0,0.00012061,2]
[336062474,1724685054836,-1555.936071,0.00012061,2]
[336062475,1724685054846,-1555.936071,0.00012061,2]
[336062476,1724685054856,-691.074742,0.00012061,2]
[336062477,1724685054866,-691.074742,0.00012061,2]
[336062478,1724685054875,-704.529628,0.00012061,2]
[336062479,1724685054885,-1849.179646,0.00012061,2]
[336062480,1724685054894,-704.529628,0.00012061,2]
[336062481,1724685054904,-505.85,0.00012061,2]
[336062482,1724685054913,-1849.179646,0.00012061,2]
[336062483,1724685054922,-151.0,0.00012061,2]
[336062484,1724685054932,-151.0,0.00012061,2]
[336062485,1724685054941,-151.0,0.00012061,2]
[336062486,1724685054951,-173.90596407,0.00012061,2]
[336062487,1724685054960,-183.206348,0.00012061,2]
[336062488,1724685054970,-183.206348,0.00012061,2]
[336062489,1724685054979,-1105.424744,0.00012061,2]
[336062490,1724685054988,-1105.424744,0.00012061,2]
[336062491,1724685055006,-1659.028668,0.00012061,2]
[336062492,1724685055017,-1659.028668,0.00012061,2]
[336062493,1724685055027,-500.0,0.00012061,2]
[336062494,1724685055036,-1274.696769,0.00012061,2]
[336062495,1724685055046,-1274.696769,0.00012061,2]
[336062496,1724685055055,-7.65550433,0.00012061,2]
[336062497,1724685055629,-134.4402305,0.0001151,2]
[336062498,1724685057613,519.10837,0.00010959,2]
[336062499,1724685079722,184.757122,0.00010804,2]
[336062519,1724685900434,-24900.0,9.171e-05,2]
[336062520,1724685932143,-300.0,9.17e-05,2]
[336062521,1724685932165,-301.69894114,9.429e-05,2]
[336062522,1724685932186,-1614.5867324,9.524e-05,2]
[336062523,1724685932207,-173.27984236,9.546e-05,2]
[336062524,1724685932230,-184.757122,9.642e-05,2]
[336062525,1724685932250,-268.8350099,9.795e-05,2]
[336062526,1724685932272,-1767.29008818,9.939e-05,2]
[336062527,1724685932294,-420.0,0.00010087,2]
[336062528,1724685932315,-899.44474491,0.0001026,2]
[336062530,1724685932343,-811.97234322,0.0001026,2]
[336062531,1724685932365,-744.4024012,0.00010346,2]
[336062532,1724685932388,-729.31646428,0.00010958,2]
[336062533,1724685932410,-392.76736,0.00010959,2]
[336062534,1724685932432,-587.0,0.00011096,2]
[336062535,1724685932454,-240.47578612,0.00011409,2]
[336062536,1724685932478,-500.0,0.00011506,2]
[336062537,1724685932500,-500.0,0.00011506,2]
[336062538,1724685932522,-500.0,0.00011506,2]
[336062539,1724685932544,-500.0,0.00011506,2]
[336062540,1724685932565,-500.0,0.00011507,2]
[336062541,1724685932590,-523.78,0.00011507,2]
[336062542,1724685932613,-1649.15,0.00011507,2]
[336062543,1724685932633,-500.0,0.00011507,2]
[336062544,1724685932655,-903.64,0.00011507,2]
[336062545,1724685932682,-500.0,0.00011507,2]
[336062546,1724685932704,-500.0,0.00011507,2]
[336062547,1724685932727,-500.0,0.00011507,2]
[336062548,1724685932749,-500.0,0.00011507,2]
[336062549,1724685932772,-500.0,0.00011507,2]
[336062550,1724685932797,-500.0,0.00011507,2]
[336062551,1724685932822,-500.0,0.00011507,2]
[336062552,1724685932846,-500.0,0.00011507,2]
[336062553,1724685932869,-500.0,0.00011507,2]
[336062554,1724685932891,-500.0,0.00011507,2]
[336062555,1724685932916,-500.0,0.00011507,2]
[336062556,1724685932941,-1751.62,0.00011507,2]
[336062557,1724685932963,-500.0,0.00011507,2]
[336062558,1724685932986,-500.0,0.00011507,2]
[336062559,1724685933011,-1232.73,0.00011507,2]
[336062560,1724685933034,-500.0,0.00011507,2]
[336062561,1724685933058,-500.0,0.00011507,2]
[336062562,1724685933083,-906.76,0.00011507,2]
[336062563,1724685933107,-500.0,0.00011507,2]
[336062564,1724685933131,-845.34,0.00011507,2]
[336062565,1724685933156,-500.0,0.00011507,2]
[336062566,1724685933180,-934.07,0.00011507,2]
[336062567,1724685933206,-2201.52,0.00011507,2]
[336062568,1724685933230,-681.05,0.00011507,2]
[336062569,1724685933252,-500.0,0.00011507,2]
[336062570,1724685933275,-500.0,0.00011507,2]
[336062571,1724685933299,-777.68,0.00011507,2]
[336062572,1724685933323,-2069.13,0.00011507,2]
[336062573,1724685933348,-500.0,0.00011507,2]
[336062574,1724685933372,-500.0,0.00011507,2]
[336062575,1724685933396,-500.0,0.00011507,2]
[336062576,1724685933419,-746.32,0.00011507,2]
[336062577,1724685933443,-1240.46,0.00011507,2]
[336062578,1724685933465,-575.83684026,0.00011507,2]
[336062579,1724685933489,-989.53,0.00011507,2]
[336062580,1724685933512,-500.0,0.00011507,2]
[336062581,1724685933535,-564.79,0.00011507,2]
[336062582,1724685933560,-500.0,0.00011507,2]
[336062583,1724685933585,-500.0,0.00011507,2]
[336062584,1724685933612,-591.15,0.00011507,2]
[336062585,1724685933634,-500.0,0.00011507,2]
[336062586,1724685933656,-603.72,0.00011507,2]
[336062588,1724685933912,-500.0,0.00011507,2]
[336062589,1724685933938,-500.0,0.00011507,2]
[336062590,1724685933963,-19460.27,0.00011507,2]
[336062591,1724685933987,-500.0,0.00011507,2]
[336062592,1724685934011,-500.0,0.00011507,2]
[336062593,1724685934035,-567.58,0.00011507,2]
[336062594,1724685934058,-500.0,0.00011507,2]
[336062595,1724685934081,-922.64,0.00011507,2]
[336062596,1724685934103,-524.5,0.00011507,2]
[336062597,1724685934126,-500.0,0.00011507,2]
[336062598,1724685934151,-1066.5,0.00011507,2]
[336062599,1724685934174,-500.0,0.00011507,2]
[336062600,1724685934197,-500.0,0.00011507,2]
[336062601,1724685934219,-500.0,0.00011508,2]
[336062602,1724685934242,-500.0,0.00011508,2]
[336062603,1724685934265,-500.0,0.00011508,2]
[336062604,1724685934288,-500.0,0.00011508,2]
[336062605,1724685934313,-500.0,0.00011508,2]
[336062606,1724685934336,-500.0,0.00011508,2]
[336062607,1724685934358,-500.0,0.00011508,2]
[336062608,1724685934381,-500.0,0.00011508,2]
[336062609,1724685934405,-150.0,0.00011508,2]
[336062610,1724685934429,-500.0,0.00011508,2]
[336062611,1724685934453,-500.0,0.00011508,2]
[336062612,1724685934476,-500.0,0.00011508,2]
[336062613,1724685934499,-500.0,0.00011508,2]
[336062614,1724685934522,-500.0,0.00011508,2]
[336062615,1724685934545,-500.0,0.00011508,2]
[336062616,1724685934570,-500.0,0.00011508,2]
[336062617,1724685934592,-500.0,0.00011508,2]
[336062618,1724685934615,-500.0,0.00011508,2]
[336062619,1724685934637,-500.0,0.00011508,2]
[336062620,1724685934660,-500.0,0.00011508,2]
[336062621,1724685934683,-500.0,0.00011508,2]
[336062622,1724685934707,-500.0,0.00011508,2]
[336062623,1724685934730,-500.0,0.00011508,2]
[336062624,1724685934753,-500.0,0.00011508,2]
[336062625,1724685934776,-500.0,0.00011508,2]
[336062626,1724685934798,-500.0,0.00011508,2]
[336062627,1724685934825,-500.0,0.00011508,2]
[336062628,1724685934849,-500.0,0.00011508,2]
[336062629,1724685934872,-500.0,0.00011508,2]
[336062630,1724685934895,-500.0,0.00011508,2]
[336062631,1724685934920,-500.0,0.00011508,2]
[336062632,1724685934943,-500.0,0.00011508,2]
[336062633,1724685934966,-500.0,0.00011508,2]
[336062634,1724685934990,-500.0,0.00011508,2]
[336062635,1724685935014,-500.0,0.00011508,2]
[336062636,1724685935037,-501.13,0.00011508,2]
[336062637,1724685935060,-500.0,0.00011508,2]
[336062638,1724685935083,-500.25966525,0.00011508,2]
[336062639,1724685935105,-545.15,0.00011508,2]
[336062640,1724685935127,-500.0,0.00011508,2]
[336062641,1724685935151,-500.0,0.00011508,2]
[336062642,1724685935173,-500.0,0.00011508,2]
[336062643,1724685935195,-500.0,0.00011508,2]
[336062644,1724685935217,-500.0,0.00011508,2]
[336062645,1724685935240,-500.0,0.00011508,2]
[336062646,1724685935261,-500.0,0.00011508,2]
[336062647,1724685935283,-500.0,0.00011508,2]
[336062648,1724685935305,-500.0,0.00011508,2]
[336062649,1724685935328,-516.79,0.00011508,2]